fUSD/lending_fUSD_20250103
["ID","MTS","AMOUNT","RATE_DAILY","PERIOD"]
[347601342,1735941046966,-500.0,0.00012171,2]
[347601343,1735941046975,-500.0,0.00012171,2]
[347601344,1735941046984,-500.0,0.00012171,2]
[347601345,1735941046993,-500.0,0.00012171,2]
[347601346,1735941047003,-500.0,0.00012171,2]
[347601347,1735941047012,-500.0,0.00012171,2]
[347601348,1735941047020,-500.0,0.00012171,2]
[347601349,1735941047029,-500.0,0.00012171,2]
[347601350,1735941047039,-500.0,0.00012171,2]
[347601351,1735941047048,-500.0,0.00012171,2]
[347601352,1735941047058,-500.0,0.00012171,2]
[347601353,1735941047067,-500.0,0.00012171,2]
[347601354,1735941047076,-500.0,0.00012171,2]
[347601355,1735941047085,-500.0,0.00012171,2]
[347601356,1735941047094,-500.0,0.00012171,2]
[347601357,1735941047104,-500.0,0.00012171,2]
[347601358,1735941047114,-596.27,0.00012171,2]
[347601359,1735941047123,-545.72,0.00012171,2]
[347601360,1735941047132,-500.0,0.00012171,2]
[347601361,1735941047142,-500.0,0.00012171,2]
[347601362,1735941047151,-500.0,0.00012171,2]
[347601363,1735941047162,-500.0,0.00012171,2]
[347601364,1735941047171,-500.0,0.00012171,2]
[347601365,1735941047181,-500.0,0.00012171,2]
[347601366,1735941047190,-1173.06908757,0.00012171,2]
[347601367,1735941047203,-847.39091243,0.00012171,2]
[347601368,1735941047212,-10.3090154,0.00012171,2]
[347601369,1735941047230,-489.6909846,0.00012171,2]
[347601370,1735941047241,-118.37101421,0.00012171,2]
[347601371,1735941047750,-267.31966196,0.00012171,2]
[347601372,1735941047763,-114.30932383,0.00012171,2]
[347601373,1735941047772,-816.32,0.00012171,2]
[347601374,1735941047781,-500.0,0.00012171,2]
[347601375,1735941047790,-236.5,0.00012171,2]
[347601376,1735941047799,-500.0,0.00012171,2]
[347601377,1735941047809,-500.0,0.00012171,2]
[347601378,1735941047818,-500.0,0.00012171,2]
[347601379,1735941047828,-1537.02,0.00012171,2]
[347601380,1735941047837,-500.0,0.00012171,2]
[347601381,1735941047846,-500.0,0.00012171,2]
[347601382,1735941047856,-500.0,0.00012171,2]
[347601383,1735941047865,-500.0,0.00012171,2]
[347601384,1735941047874,-500.0,0.00012171,2]
[347601385,1735941047883,-1539.91,0.00012171,2]
[347601386,1735941047892,-500.0,0.00012171,2]
[347601387,1735941047902,-500.0,0.00012171,2]
[347601388,1735941047911,-500.0,0.00012171,2]
[347601389,1735941047921,-500.0,0.00012171,2]
[347601390,1735941047931,-500.0,0.00012171,2]
[347601391,1735941047940,-500.0,0.00012171,2]
[347601392,1735941047950,-500.0,0.00012171,2]
[347601393,1735941047959,-500.0,0.00012171,2]
[347601394,1735941047971,-1481.85,0.00012171,2]
[347601395,1735941047981,-555.14,0.00012171,2]
[347601396,1735941047990,-500.0,0.00012171,2]
[347601397,1735941047999,-500.0,0.00012171,2]
[347601398,1735941048009,-632.46,0.00012171,2]
[347601399,1735941048018,-500.0,0.00012171,2]
[347601400,1735941048028,-500.0,0.00012171,2]
[347601401,1735941048038,-500.0,0.00012171,2]
[347601402,1735941048048,-500.0,0.00012171,2]
[347601403,1735941048059,-500.0,0.00012171,2]
[347601404,1735941048068,-500.0,0.00012171,2]
[347601405,1735941048078,-393.345463,0.00012171,2]
[347601406,1735941048088,-500.0,0.00012171,2]
[347601407,1735941048099,-500.0,0.00012171,2]
[347601408,1735941048108,-500.0,0.00012171,2]
[347601409,1735941048118,-1017.33,0.00012171,2]
[347601410,1735941048127,-500.0,0.00012171,2]
[347601411,1735941048137,-500.0,0.00012171,2]
[347601412,1735941048147,-500.0,0.00012171,2]
[347601413,1735941048157,-535.6,0.00012171,2]
[347601414,1735941048167,-500.0,0.00012171,2]
[347601415,1735941048178,-500.0,0.00012171,2]
[347601416,1735941048188,-500.0,0.00012171,2]
[347601417,1735941048198,-500.0,0.00012171,2]
[347601418,1735941048208,-942.56,0.00012171,2]
[347601419,1735941048218,-500.0,0.00012171,2]
[347601420,1735941048228,-500.0,0.00012171,2]
[347601421,1735941048238,-500.0,0.00012171,2]
[347601422,1735941048247,-500.0,0.00012171,2]
[347601423,1735941048257,-500.0,0.00012172,2]
[347601424,1735941048267,-500.0,0.00012172,2]
[347601425,1735941048278,-471.90980358,0.00012172,2]
[347601426,1735941048291,-28.09019642,0.00012172,2]
[347601427,1735941048301,-422.2,0.00012172,2]
[347601428,1735941048311,-176.0,0.00012172,2]
[347601429,1735941048321,-500.0,0.00012172,2]
[347601430,1735941048331,-434.16981543,0.00012172,2]
[347601431,1735941048340,-500.0,0.00012172,2]
[347601432,1735941048351,-500.0,0.00012172,2]
[347601433,1735941048360,-500.0,0.00012172,2]
[347601434,1735941048370,-500.0,0.00012172,2]
[347601435,1735941048380,-353.31,0.00012172,2]
[347601436,1735941048390,-454.77,0.00012172,2]
[347601437,1735941048400,-361.93,0.00012172,2]
[347601438,1735941048409,-592.3,0.00012172,2]
[347601439,1735941048419,-500.0,0.00012172,2]
[347601440,1735941048428,-500.0,0.00012172,2]
[347601441,1735941048438,-333.19,0.00012172,2]
[347601442,1735941048447,-500.0,0.00012172,2]
[347601443,1735941048457,-500.0,0.00012172,2]
[347601444,1735941048467,-500.0,0.00012172,2]
[347601445,1735941048476,-500.0,0.00012172,2]
[347601446,1735941048486,-500.0,0.00012172,2]
[347601447,1735941048495,-500.0,0.00012172,2]
[347601448,1735941048504,-500.0,0.00012172,2]
[347601449,1735941048515,-527.52,0.00012172,2]
[347601450,1735941048524,-500.0,0.00012172,2]
[347601451,1735941048534,-549.85,0.00012172,2]
[347601452,1735941048543,-500.0,0.00012172,2]
[347601453,1735941048553,-500.0,0.00012172,2]
[347601454,1735941048562,-500.0,0.00012172,2]
[347601455,1735941048572,-5000.0,0.00012172,2]
[347601456,1735941048581,-617.57,0.00012172,2]
[347601457,1735941048591,-500.0,0.00012172,2]
[347601458,1735941048601,-500.0,0.00012172,2]
[347601459,1735941048610,-500.0,0.00012172,2]
[347601460,1735941048621,-500.0,0.00012172,2]
[347601461,1735941048630,-500.0,0.00012172,2]
[347601462,1735941048640,-500.0,0.00012172,2]
[347601463,1735941048649,-500.0,0.00012172,2]
[347601464,1735941048659,-500.0,0.00012172,2]
[347601465,1735941048668,-916.61,0.00012172,2]
[347601466,1735941048680,-500.0,0.00012172,2]
[347601467,1735941048690,-500.0,0.00012172,2]
[347601468,1735941048699,-632.8,0.00012172,2]
[347601469,1735941048709,-500.0,0.00012172,2]
[347601470,1735941048719,-548.72,0.00012172,2]
[347601471,1735941048729,-500.0,0.00012172,2]
[347601472,1735941048738,-802.04,0.00012172,2]
[347601473,1735941048748,-236.83,0.00012172,2]
[347601474,1735941048758,-500.0,0.00012172,2]
[347601475,1735941048767,-500.0,0.00012172,2]
[347601476,1735941048777,-195.25,0.00012172,2]
[347601477,1735941048787,-500.0,0.00012172,2]
[347601478,1735941048797,-500.0,0.00012172,2]
[347601479,1735941048807,-500.0,0.00012172,2]
[347601480,1735941048816,-500.0,0.00012172,2]
[347601481,1735941048826,-500.0,0.00012172,2]
[347601482,1735941048835,-644.91,0.00012172,2]
[347601483,1735941048845,-500.0,0.00012172,2]
[347601484,1735941048855,-500.0,0.00012172,2]
[347601485,1735941048865,-500.0,0.00012172,2]
[347601486,1735941048875,-500.0,0.00012172,2]
[347601487,1735941048885,-500.0,0.00012172,2]
[347601488,1735941048895,-150.41,0.00012172,2]
[347601489,1735941048904,-524.8,0.00012172,2]
[347601490,1735941048914,-500.0,0.00012172,2]
[347601491,1735941048924,-500.0,0.00012172,2]
[347601492,1735941048933,-500.0,0.00012172,2]
[347601493,1735941048943,-208.57,0.00012172,2]
[347601494,1735941048953,-517.19,0.00012172,2]
[347601495,1735941048963,-500.0,0.00012172,2]
[347601496,1735941048973,-500.0,0.00012172,2]
[347601497,1735941048983,-500.0,0.00012172,2]
[347601498,1735941048992,-399.02219002,0.00012172,2]
[347601499,1735941049002,-525.63,0.00012172,2]
[347601500,1735941049012,-500.0,0.00012172,2]
[347601501,1735941049022,-500.0,0.00012172,2]
[347601502,1735941049031,-500.0,0.00012172,2]
[347601503,1735941049041,-500.0,0.00012172,2]
[347601504,1735941049050,-148.96025813,0.00012172,2]
[347601505,1735941049068,-351.03974187,0.00012172,2]
[347601506,1735941049078,-500.0,0.00012172,2]
[347601507,1735941049088,-500.0,0.00012172,2]
[347601508,1735941049097,-500.0,0.00012172,2]
[347601509,1735941049107,-500.0,0.00012172,2]
[347601510,1735941049117,-597.87,0.00012172,2]
[347601511,1735941049127,-280.18,0.00012172,2]
[347601512,1735941049137,-190.63,0.00012172,2]
[347601513,1735941049147,-418.77882656,0.00012172,2]
[347601514,1735941049157,-500.0,0.00012172,2]
[347601515,1735941049167,-501.94,0.00012172,2]
[347601516,1735941049176,-500.0,0.00012172,2]
[347601517,1735941049186,-500.0,0.00012172,2]
[347601518,1735941049196,-500.0,0.00012172,2]
[347601519,1735941049206,-500.0,0.00012172,2]
[347601520,1735941049216,-500.0,0.00012172,2]
[347601521,1735941049226,-500.0,0.00012172,2]
[347601522,1735941049236,-500.0,0.00012172,2]
[347601523,1735941049246,-500.0,0.00012172,2]
[347601524,1735941049256,-500.0,0.00012172,2]
[347601525,1735941049267,-500.0,0.00012172,2]
[347601526,1735941049280,-500.0,0.00012172,2]
[347601527,1735941049290,-184.31,0.00012172,2]
[347601528,1735941049300,-574.63,0.00012172,2]
[347601529,1735941049311,-537.62,0.00012172,2]
[347601530,1735941049321,-500.0,0.00012172,2]
[347601531,1735941049332,-500.0,0.00012172,2]
[347601532,1735941049342,-495.76,0.00012172,2]
[347601533,1735941049353,-500.0,0.00012172,2]
[347601534,1735941049363,-500.0,0.00012172,2]
[347601535,1735941049372,-500.0,0.00012172,2]
[347601536,1735941049383,-500.0,0.00012172,2]
[347601537,1735941049393,-500.0,0.00012172,2]
[347601538,1735941049403,-500.0,0.00012172,2]
[347601539,1735941049412,-500.0,0.00012172,2]
[347601540,1735941049422,-145.21905668,0.00012172,2]
[347601541,1735941049435,-354.78094332,0.00012172,2]
[347601542,1735941049445,-500.0,0.00012172,2]
[347601543,1735941049456,-500.0,0.00012172,2]
[347601544,1735941049467,-500.0,0.00012172,2]
[347601545,1735941049478,-215.34411816,0.00012172,2]
[347601546,1735941049515,-329.3404411,0.00012172,2]
[347601547,1735941049526,-541.75,0.00012172,2]
[347601548,1735941049537,-500.0,0.00012172,2]
[347601549,1735941049549,-500.0,0.00012172,2]
[347601550,1735941049560,-500.0,0.00012172,2]
[347601551,1735941049570,-500.0,0.00012172,2]
[347601552,1735941049580,-513.35,0.00012172,2]
[347601553,1735941049590,-604.48,0.00012172,2]
[347601554,1735941049599,-500.0,0.00012172,2]
[347601555,1735941049609,-263.4580546,0.00012172,2]
[347601556,1735941049620,-773.66,0.00012172,2]
[347601557,1735941049629,-247.37,0.00012172,2]
[347601558,1735941049639,-500.0,0.00012172,2]
[347601559,1735941049648,-500.0,0.00012172,2]
[347601560,1735941049657,-173.36,0.00012172,2]
[347601561,1735941049668,-500.0,0.00012172,2]
[347601562,1735941049677,-500.0,0.00012172,2]
[347601563,1735941049687,-840.98,0.00012172,2]
[347601564,1735941049696,-500.0,0.00012172,2]
[347601565,1735941049706,-596.13,0.00012172,2]
[347601566,1735941049715,-164.01,0.00012172,2]
[347601567,1735941049725,-500.0,0.00012172,2]
[347601568,1735941049735,-500.0,0.00012172,2]
[347601569,1735941049745,-500.0,0.00012172,2]
[347601570,1735941049755,-159.77413793,0.00012172,2]
[347601571,1735941049768,-407.12586207,0.00012172,2]
[347601572,1735941049778,-500.0,0.00012172,2]
[347601573,1735941049787,-500.0,0.00012172,2]
[347601574,1735941049797,-210.87,0.00012172,2]
[347601575,1735941049806,-500.0,0.00012172,2]
[347601576,1735941049816,-500.0,0.00012172,2]
[347601577,1735941049825,-500.0,0.00012172,2]
[347601578,1735941049835,-500.0,0.00012172,2]
[347601579,1735941049844,-716.11,0.00012172,2]
[347601580,1735941049854,-281.719345,0.00012172,2]
[347601581,1735941049863,-204.36,0.00012172,2]
[347601582,1735941049873,-500.0,0.00012172,2]
[347601583,1735941049883,-2498.33,0.00012172,2]
[347601584,1735941049893,-382.57847,0.00012172,2]
[347601585,1735941049904,-490.13,0.00012172,2]
[347601586,1735941049913,-500.0,0.00012172,2]
[347601587,1735941049924,-33.69353293,0.00012172,2]
[347601588,1735941049936,-466.30646707,0.00012172,2]
[347601589,1735941049946,-203.06,0.00012172,2]
[347601590,1735941049956,-931.3,0.00012172,2]
[347601591,1735941049966,-241.13,0.00012172,2]
[347601592,1735941049976,-500.0,0.00012172,2]
[347601593,1735941049986,-500.0,0.00012172,2]
[347601594,1735941049997,-953.44,0.00012173,2]
[347601595,1735941050007,-2307.09,0.00012173,2]
[347601596,1735941050018,-1080.06,0.00012173,2]
[347601597,1735941050027,-2970.49,0.00012173,2]
[347601598,1735941050037,-1249.39,0.00012173,2]
[347601599,1735941050047,-1450.49,0.00012173,2]
[347601600,1735941050057,-865.79,0.00012173,2]
[347601601,1735941050067,-586.22,0.00012173,2]
[347601602,1735941050076,-750.03,0.00012173,2]
[347601603,1735941050085,-1915.33,0.00012173,2]
[347601604,1735941050097,-1232.87,0.00012173,2]
[347601605,1735941050106,-544.47,0.00012173,2]
[347601606,1735941050116,-500.0,0.00012173,2]
[347601607,1735941050127,-500.0,0.00012173,2]
[347601608,1735941050137,-500.0,0.00012173,2]
[347601609,1735941050147,-500.0,0.00012173,2]
[347601610,1735941050157,-247.71411641,0.00012173,2]
[347601611,1735941050170,-252.28588359,0.00012173,2]
[347601612,1735941050180,-500.0,0.00012173,2]
[347601613,1735941050190,-247.71411641,0.00012173,2]
[347601616,1735941809039,500.0,0.0002,120]
[347601617,1735942008133,-376.97,9.065e-05,2]
[347601618,1735942008157,-38.54271898,0.00010137,2]
[347601625,1735942154084,-264.94062256,0.00010137,2]
[347601626,1735942155005,1000.0,0.00012172,35]
[347601634,1735942232432,-260.93665846,0.00010137,2]
[347601635,1735942232442,-345.5,0.00010431,2]
[347601636,1735942232452,-300.0,0.0001045,2]
[347601637,1735942232462,-24.56335154,0.00010451,2]
[347601638,1735942232474,-792.5651784,0.00010451,2]
[347601639,1735942232487,-414.7679528,0.00010451,2]
[347601640,1735942232498,-371.34408648,0.00010451,2]
[347601641,1735942235646,-12488.09282679,0.00010451,2]
[347601642,1735942235724,-711.39660399,0.00010451,2]
[347601643,1735942235734,-152.0,0.00010587,3]
[347601644,1735942235744,-1043.30358718,0.00010595,2]
[347601645,1735942235755,-6101.85641282,0.00010595,2]
[347601646,1735942235765,-1000.0,0.00010695,2]
[347601647,1735942235775,-14664.03,0.00010723,2]
[347601648,1735942235785,-250.0,0.00010738,2]
[347601649,1735942235795,-150.0,0.00010948,2]
[347601650,1735942235804,-8007.43051413,0.00010959,2]
[347601651,1735942235815,-1804.70948587,0.00010959,2]
[347601652,1735942235825,-200.0,0.00010969,2]
[347601653,1735942235834,-10615.15770495,0.00010969,2]
[347601654,1735942235849,-779.26262929,0.00010969,2]
[347601655,1735942235860,-4496.1404472,0.00010969,2]
[347601656,1735942235891,-2162.50219316,0.00010969,2]
[347601658,1735942235900,-2137.49780684,0.00010969,2]
[347601676,1735942238279,-1823.02986086,0.00010969,2]
[347601678,1735942238292,-5217.58893646,0.00010969,2]
[347601679,1735942238301,-200.0,0.0001097,2]
[347601680,1735942238310,-226.12244027,0.00010971,2]
[347601681,1735942238319,-9178.11660416,0.00010971,2]
[347601682,1735942238329,-12026.79326,0.00010972,2]
[347601683,1735942238338,-5205.80521922,0.00010973,2]
[347601684,1735942238347,-5205.80521922,0.00010973,2]
[347601685,1735942238358,-200.0,0.00010974,2]
[347601686,1735942238367,-12026.79326,0.00010975,2]
[347601687,1735942238376,-5205.80521922,0.00010978,2]
[347601688,1735942238385,-9178.11660416,0.00010978,2]
[347601689,1735942238394,-226.12244027,0.0001098,2]
[347601690,1735942238403,-226.12244027,0.0001098,2]
[347601691,1735942238412,-12026.79326,0.00010981,2]
[347601692,1735942238421,-12026.79326,0.00010982,2]
[347601693,1735942238430,-8084.40164109,0.00010983,2]
[347601694,1735942238507,-2026.65877865,0.00010983,2]
[347601695,1735942238519,-1241.83745801,0.00010983,2]
[347601696,1735942238531,-1575.39062773,0.00010983,2]
[347601697,1735942238540,-12026.79326,0.00010984,2]
[347601698,1735942238549,-12928.28850548,0.00010985,2]
[347601699,1735942238558,-400.0,0.00010986,2]
[347601700,1735942238567,-12026.79326,0.00010988,2]
[347601701,1735942238576,-226.12244027,0.00010989,2]
[347601702,1735942238585,-1848.96,0.00010989,2]
[347601703,1735942238594,-5205.80521922,0.00010989,2]
[347601704,1735942238603,-5205.80521922,0.0001099,2]
[347601705,1735942238611,-12928.28850548,0.0001099,2]
[347601706,1735942238620,-5205.80521922,0.00010991,2]
[347601707,1735942238630,-3223.66761998,0.00010991,2]
[347601708,1735942238646,-5954.44898418,0.00010991,2]
[347601709,1735942238655,-745.60457457,0.00010991,2]
[347601710,1735942238665,-5857.74313937,0.00010991,2]
[347601711,1735942238694,-1188.92369489,0.00010991,2]
[347601712,1735942238704,-999.99239335,0.00010991,2]
[347601713,1735942238715,-4136.0247033,0.00010991,2]
[347601714,1735942238725,-1705.92510612,0.00010992,2]
[347601715,1735942238746,-4800.0,0.00010992,2]
[347601716,1735942238757,-457.49249934,0.00010992,2]
[347601717,1735942238771,-326.249997,0.00010992,2]
[347601718,1735942238783,-425.99999,0.00010992,2]
[347601719,1735942238794,-3600.0,0.00010992,2]
[347601720,1735942238805,-1612.62091302,0.00010992,2]
[347601721,1735942238814,-4556.61728698,0.00010992,2]
[347601722,1735942238824,-4087.13897112,0.00010992,2]
[347601723,1735942238842,-9409.3067165,0.00010992,2]
[347601724,1735942238851,-9178.11660416,0.00010993,2]
[347601725,1735942238862,-18053.0629746,0.00010993,2]
[347601726,1735942238872,-9178.11660416,0.00010993,2]
[347601727,1735942238882,-12928.28850548,0.00010994,2]
[347601728,1735942238891,-18053.0629746,0.00010994,2]
[347601729,1735942238904,-226.12244027,0.00010996,2]
[347601730,1735942238914,-226.12244027,0.00010996,2]
[347601731,1735942238924,-18053.0629746,0.00010999,2]
[347601732,1735942238934,-18053.0629746,0.00011,2]
[347601733,1735942238943,-500.0,0.00011,4]
[347601734,1735942238953,-550.0,0.00011,2]
[347601735,1735942238962,-163.37,0.00011043,2]
[347601736,1735942238971,-1100.0,0.000111,4]
[347601737,1735942238981,-1700.0,0.000112,4]
[347601738,1735942238990,-250.0,0.00011277,2]
[347601739,1735942239000,-182.0,0.00011294,2]
[347601740,1735942239009,-2200.0,0.000113,4]
[347601741,1735942239019,-166.71,0.00011315,2]
[347601742,1735942239029,-376.97,0.00011329,2]
[347601743,1735942239039,-2800.0,0.000114,4]
[347601744,1735942239048,-420.0,0.0001149,2]
[347601745,1735942239057,-500.0,0.000115,4]
[347601746,1735942239066,-6595.0,0.00011589,2]
[347601747,1735942239075,-500.0,0.000116,4]
[347601748,1735942239085,-167.07,0.00011607,2]
[347601749,1735942239094,-276.43,0.0001168,2]
[347601750,1735942239104,-500.0,0.000117,4]
[347601751,1735942239113,-345.5,0.00011735,2]
[347601752,1735942239122,-2304.2095,0.00011798,2]
[347601753,1735942239132,-1284.445,0.00011798,2]
[347601754,1735942239141,-172.192,0.00011798,2]
[347601755,1735942239150,-500.0,0.000118,4]
[347601756,1735942239160,-513.31,0.00011897,2]
[347601757,1735942239170,-1066.48,0.00011897,2]
[347601758,1735942239179,-1142.27,0.00011897,2]
[347601759,1735942239189,-500.0,0.00011897,2]
[347601760,1735942239198,-1031.95,0.00011897,2]
[347601761,1735942239208,-500.0,0.00011897,2]
[347601762,1735942239217,-1052.79,0.00011897,2]
[347601763,1735942239226,-500.0,0.00011897,2]
[347601764,1735942239235,-500.0,0.00011897,2]
[347601765,1735942239245,-500.0,0.00011897,2]
[347601766,1735942239254,-500.0,0.00011897,2]
[347601767,1735942239264,-500.0,0.00011897,2]
[347601768,1735942239274,-598.28,0.00011897,2]
[347601769,1735942239284,-500.0,0.00011897,2]
[347601770,1735942239293,-1009.78,0.00011897,2]
[347601771,1735942239303,-500.0,0.00011898,2]
[347601772,1735942239312,-500.0,0.00011898,2]
[347601773,1735942239321,-500.0,0.00011898,2]
[347601774,1735942239330,-500.0,0.00011898,2]
[347601775,1735942239339,-500.0,0.00011898,2]
[347601776,1735942239349,-500.0,0.00011898,2]
[347601777,1735942239358,-500.0,0.00011898,2]
[347601778,1735942239368,-363.76903328,0.00011898,2]
[347601779,1735942239377,-500.0,0.00011898,2]
[347601780,1735942239386,-500.0,0.00011898,2]
[347601781,1735942239396,-500.0,0.00011898,2]
[347601782,1735942239405,-4623.98390381,0.00011898,2]
[347601783,1735942239415,-500.0,0.00011898,2]
[347601784,1735942239424,-500.0,0.00011898,2]
[347601785,1735942239433,-500.0,0.00011898,2]
[347601786,1735942239443,-500.0,0.00011898,2]
[347601787,1735942239452,-500.0,0.00011898,2]
[347601788,1735942239461,-500.0,0.00011898,2]
[347601789,1735942239471,-500.0,0.00011898,2]
[347601790,1735942239480,-500.0,0.00011898,2]
[347601791,1735942239489,-500.0,0.00011898,2]
[347601792,1735942239498,-500.0,0.00011898,2]
[347601793,1735942239507,-500.0,0.00011898,2]
[347601794,1735942239516,-500.0,0.00011898,2]
[347601795,1735942239525,-500.0,0.00011898,2]
[347601796,1735942239534,-500.0,0.00011898,2]
[347601797,1735942239544,-500.0,0.00011898,2]
[347601798,1735942239553,-500.0,0.00011898,2]
[347601799,1735942239561,-500.0,0.00011898,2]
[347601800,1735942239570,-500.0,0.00011898,2]
[347601801,1735942239579,-500.0,0.00011898,2]
[347601802,1735942239588,-500.0,0.00011898,2]
[347601803,1735942239597,-500.0,0.00011898,2]
[347601804,1735942239606,-500.0,0.00011898,2]
[347601805,1735942239614,-500.0,0.00011898,2]
[347601806,1735942239623,-500.0,0.00011898,2]
[347601807,1735942239632,-500.0,0.00011898,2]
[347601808,1735942239642,-500.0,0.00011898,2]
[347601809,1735942239651,-500.0,0.00011898,2]
[347601810,1735942239660,-500.0,0.00011898,2]
[347601811,1735942239669,-630.71,0.00011898,2]
[347601812,1735942239678,-500.0,0.00011898,2]
[347601813,1735942239692,-184.46943378,0.00011898,2]
[347601814,1735942239702,-500.0,0.00011898,2]
[347601815,1735942239711,-500.0,0.00011898,2]
[347601816,1735942239720,-500.000001,0.00011898,2]
[347601817,1735942239730,-500.0,0.00011898,2]
[347601818,1735942239739,-500.0,0.00011898,2]
[347601819,1735942239748,-500.0,0.00011898,2]
[347601820,1735942239760,-366.83292969,0.00011898,2]
[347601821,1735942239779,-80.04338203,0.00011898,2]
[347601822,1735942239789,-500.0,0.00011898,2]
[347601823,1735942239798,-500.0,0.00011898,2]
[347601824,1735942239807,-500.0,0.00011898,2]
[347601825,1735942239816,-500.0,0.00011898,2]
[347601826,1735942239825,-293.81585519,0.00011898,2]
[347601827,1735942239834,-500.0,0.00011898,2]
[347601828,1735942239843,-500.0,0.00011898,2]
[347601829,1735942239852,-26.14046278,0.00011898,2]
[347601830,1735942239863,-473.85953722,0.00011898,2]
[347601831,1735942239872,-500.0,0.00011898,2]
[347601832,1735942239881,-500.0,0.00011898,2]
[347601833,1735942239890,-500.0,0.00011898,2]
[347601834,1735942239899,-500.0,0.00011898,2]
[347601835,1735942239909,-500.0,0.00011898,2]
[347601836,1735942239918,-500.0,0.00011898,2]
[347601837,1735942239929,-500.0,0.00011898,2]
[347601838,1735942239938,-500.0,0.00011898,2]
[347601839,1735942239950,-500.0,0.00011898,2]
[347601840,1735942239960,-500.0,0.00011898,2]
[347601841,1735942239969,-500.0,0.00011898,2]
[347601842,1735942239979,-500.0,0.00011898,2]
[347601843,1735942239988,-500.0,0.00011898,2]
[347601844,1735942239998,-500.0,0.00011898,2]
[347601845,1735942240007,-500.0,0.00011898,2]
[347601846,1735942240016,-503.54,0.00011898,2]
[347601847,1735942240027,-500.0,0.00011898,2]
[347601848,1735942240036,-500.0,0.00011898,2]
[347601849,1735942240047,-500.0,0.00011898,2]
[347601850,1735942240059,-500.0,0.00011898,2]
[347601851,1735942240069,-500.0,0.00011898,2]
[347601852,1735942240080,-500.0,0.00011898,2]
[347601853,1735942240090,-500.0,0.00011898,2]
[347601854,1735942240100,-500.0,0.00011898,2]
[347601855,1735942240109,-500.0,0.00011898,2]
[347601856,1735942240119,-500.0,0.00011898,2]
[347601857,1735942240129,-500.0,0.00011898,2]
[347601858,1735942240140,-500.0,0.00011898,2]
[347601859,1735942240149,-500.0,0.00011898,2]
[347601860,1735942240159,-500.0,0.00011898,2]
[347601861,1735942240169,-500.0,0.00011898,2]
[347601862,1735942240179,-500.0,0.00011898,2]
[347601863,1735942240189,-500.0,0.00011898,2]
[347601864,1735942240198,-500.0,0.00011898,2]
[347601865,1735942240208,-500.0,0.00011898,2]
[347601866,1735942240217,-500.0,0.00011898,2]
[347601867,1735942240228,-500.0,0.00011898,2]
[347601868,1735942240240,-500.0,0.00011898,2]
[347601869,1735942240250,-500.0,0.00011898,2]
[347601870,1735942240259,-500.0,0.00011898,2]
[347601871,1735942240269,-500.0,0.00011898,2]
[347601872,1735942240279,-500.0,0.00011898,2]
[347601873,1735942240289,-500.0,0.00011898,2]
[347601874,1735942240299,-602.74257638,0.00011898,2]
[347601875,1735942240308,-500.0,0.00011898,2]